[Event "Titled Tuesday Blitz March 08 Early 2022"]
[White "Jary, Sergey"]
[Black "Murzin, Volodar"]
[WhiteFideId "14110350"]
[BlackFideId "44155573"]
[WhiteElo "2260"]
[BlackElo "2585"]
[Result "1-0"]
[Round "11"]
[TimeControl "180+1"]
[Date "2022.03.08"]
[WhiteClock "0:00:23"]
[BlackClock "0:00:01"]

1. e4 {[%clk 0:03:00]}  c5 {[%clk 0:02:56]} 2. Nf3 {[%clk 0:03:00]}  d6 {[%clk 0:02:56]} 3. d4 {[%clk 0:03:00]}  cxd4 {[%clk 0:02:57]} 4. Nxd4 {[%clk 0:03:01]}  Nf6 {[%clk 0:02:58]} 5. f3 {[%clk 0:03:01]}  e5 {[%clk 0:02:57]} 6. Bb5+ {[%clk 0:03:01]}  Bd7 {[%clk 0:02:54]} 7. Bxd7+ {[%clk 0:03:00]}  Qxd7 {[%clk 0:02:55]} 8. Nf5 {[%clk 0:03:00]}  d5 {[%clk 0:02:53]} 9. Bg5 {[%clk 0:02:48]}  dxe4 {[%clk 0:02:47]} 10. Bxf6 {[%clk 0:02:46]}  Qxd1+ {[%clk 0:02:48]} 11. Kxd1 {[%clk 0:02:46]}  gxf6 {[%clk 0:02:48]} 12. fxe4 {[%clk 0:02:46]}  Rg8 {[%clk 0:02:49]} 13. g3 {[%clk 0:02:45]}  Nd7 {[%clk 0:02:50]} 14. Ke2 {[%clk 0:02:29]}  O-O-O {[%clk 0:02:37]} 15. c3 {[%clk 0:02:29]}  Nc5 {[%clk 0:02:28]} 16. Nd2 {[%clk 0:02:29]}  h5 {[%clk 0:02:07]} 17. Rad1 {[%clk 0:02:23]}  Rg4 {[%clk 0:02:01]} 18. h3 {[%clk 0:02:18]}  Rg5 {[%clk 0:01:59]} 19. Kf3 {[%clk 0:02:15]}  Rd3+ {[%clk 0:01:55]} 20. Ke2 {[%clk 0:02:15]}  Rd7 {[%clk 0:01:19]} 21. Kf3 {[%clk 0:02:13]}  Na4 {[%clk 0:01:03]} 22. Nc4 {[%clk 0:02:12]}  Rc7 {[%clk 0:00:54]} 23. Nfd6+ {[%clk 0:02:05]}  Kb8 {[%clk 0:00:52]} 24. h4 {[%clk 0:02:00]}  Rg4 {[%clk 0:00:50]} 25. Rd2 {[%clk 0:01:59]}  f5 {[%clk 0:00:35]} 26. Nxe5 {[%clk 0:01:42]}  Bxd6 {[%clk 0:00:33]} 27. Rxd6 {[%clk 0:01:41]}  fxe4+ {[%clk 0:00:33]} 28. Kg2 {[%clk 0:01:35]}  Rg8 {[%clk 0:00:32]} 29. Rd2 {[%clk 0:01:23]}  Nc5 {[%clk 0:00:27]} 30. Rd5 {[%clk 0:01:18]}  Kc8 {[%clk 0:00:12]} 31. Rhd1 {[%clk 0:01:18]}  f6 {[%clk 0:00:10]} 32. Nc4 {[%clk 0:01:10]}  Nd3 {[%clk 0:00:09]} 33. Nd6+ {[%clk 0:01:06]}  Kb8 {[%clk 0:00:09]} 34. Rd2 {[%clk 0:01:05]}  Nf4+ {[%clk 0:00:08]} 35. Kf2 {[%clk 0:00:56]}  e3+ {[%clk 0:00:08]} 36. Kxe3 {[%clk 0:00:53]}  Nxd5+ {[%clk 0:00:09]} 37. Rxd5 {[%clk 0:00:51]}  Rxg3+ {[%clk 0:00:09]} 38. Kf2 {[%clk 0:00:47]}  Rg4 {[%clk 0:00:06]} 39. Rxh5 {[%clk 0:00:44]}  Rc6 {[%clk 0:00:06]} 40. Rh8+ {[%clk 0:00:41]}  Kc7 {[%clk 0:00:07]} 41. Nb5+ {[%clk 0:00:38]}  Kb6 {[%clk 0:00:07]} 42. Nd4 {[%clk 0:00:34]}  Rd6 {[%clk 0:00:07]} 43. a4 {[%clk 0:00:30]}  a6 {[%clk 0:00:06]} 44. b4 {[%clk 0:00:28]}  Ka7 {[%clk 0:00:04]} 45. a5 {[%clk 0:00:26]}  f5 {[%clk 0:00:04]} 46. b5 {[%clk 0:00:23]}  Rgxd4 {[%clk 0:00:01]} 47. b6+ {[%clk 0:00:23]} 1-0


[Site "https://www.chess.com"]

[Event "Titled Tuesday Blitz March 08 Early 2022"]
[White "Jaskolka, Tomasz"]
[Black "Krysa, Leandro"]
[WhiteFideId "1170791"]
[BlackFideId "116807"]
[WhiteElo "2073"]
[BlackElo "2490"]
[Result "0-1"]
[Round "11"]
[TimeControl "180+1"]
[Date "2022.03.08"]
[WhiteClock "0:00:06"]
[BlackClock "0:00:18"]

1. d4 {[%clk 0:02:44]}  d5 {[%clk 0:02:58]} 2. Bf4 {[%clk 0:02:43]}  Nf6 {[%clk 0:02:56]} 3. e3 {[%clk 0:02:42]}  Bg4 {[%clk 0:02:56]} 4. Nf3 {[%clk 0:02:41]}  c5 {[%clk 0:02:55]} 5. c3 {[%clk 0:02:41]}  Qb6 {[%clk 0:02:50]} 6. Qb3 {[%clk 0:02:41]}  c4 {[%clk 0:02:45]} 7. Qc2 {[%clk 0:02:36]}  Nc6 {[%clk 0:02:37]} 8. b3 {[%clk 0:02:29]}  cxb3 {[%clk 0:02:36]} 9. axb3 {[%clk 0:02:29]}  e6 {[%clk 0:02:32]} 10. Nbd2 {[%clk 0:02:18]}  Be7 {[%clk 0:02:30]} 11. Bd3 {[%clk 0:02:11]}  Bh5 {[%clk 0:02:28]} 12. O-O {[%clk 0:02:11]}  Bg6 {[%clk 0:02:28]} 13. Ne5 {[%clk 0:02:09]}  Bxd3 {[%clk 0:02:24]} 14. Qxd3 {[%clk 0:02:04]}  O-O {[%clk 0:02:24]} 15. Nxc6 {[%clk 0:01:43]}  bxc6 {[%clk 0:02:18]} 16. Ra6 {[%clk 0:01:39]}  Qb7 {[%clk 0:02:10]} 17. h3 {[%clk 0:01:37]}  c5 {[%clk 0:02:06]} 18. Rfa1 {[%clk 0:01:33]}  Nd7 {[%clk 0:01:58]} 19. Qc2 {[%clk 0:00:48]}  cxd4 {[%clk 0:01:44]} 20. exd4 {[%clk 0:00:47]}  Rfc8 {[%clk 0:01:42]} 21. c4 {[%clk 0:00:40]}  Bb4 {[%clk 0:01:30]} 22. c5 {[%clk 0:00:37]}  e5 {[%clk 0:01:30]} 23. c6 {[%clk 0:00:18]}  Qb5 {[%clk 0:01:30]} 24. dxe5 {[%clk 0:00:15]}  Nc5 {[%clk 0:01:20]} 25. Rxa7 {[%clk 0:00:14]}  Rxa7 {[%clk 0:01:11]} 26. Rxa7 {[%clk 0:00:13]}  Qxc6 {[%clk 0:01:07]} 27. Qf5 {[%clk 0:00:12]}  Qe6 {[%clk 0:01:03]} 28. Qxe6 {[%clk 0:00:11]}  Nxe6 {[%clk 0:01:03]} 29. Be3 {[%clk 0:00:09]}  d4 {[%clk 0:01:04]} 30. Nc4 {[%clk 0:00:08]}  dxe3 {[%clk 0:01:03]} 31. fxe3 {[%clk 0:00:09]}  g6 {[%clk 0:00:57]} 32. Kf2 {[%clk 0:00:09]}  Bc5 {[%clk 0:00:55]} 33. Rb7 {[%clk 0:00:09]}  Bf8 {[%clk 0:00:46]} 34. Kf3 {[%clk 0:00:07]}  Nc5 {[%clk 0:00:44]} 35. Ra7 {[%clk 0:00:06]}  Nxb3 {[%clk 0:00:42]} 36. Nd6 {[%clk 0:00:07]}  Bxd6 {[%clk 0:00:41]} 37. exd6 {[%clk 0:00:08]}  Rd8 {[%clk 0:00:41]} 38. Ra6 {[%clk 0:00:07]}  Nc5 {[%clk 0:00:40]} 39. Rb6 {[%clk 0:00:08]}  Nd7 {[%clk 0:00:39]} 40. Ra6 {[%clk 0:00:06]}  Kg7 {[%clk 0:00:37]} 41. e4 {[%clk 0:00:07]}  Kf6 {[%clk 0:00:36]} 42. g4 {[%clk 0:00:07]}  Ke6 {[%clk 0:00:37]} 43. Kf4 {[%clk 0:00:07]}  h6 {[%clk 0:00:36]} 44. h4 {[%clk 0:00:05]}  f6 {[%clk 0:00:35]} 45. g5 {[%clk 0:00:04]}  fxg5+ {[%clk 0:00:34]} 46. hxg5 {[%clk 0:00:05]}  h5 {[%clk 0:00:34]} 47. e5 {[%clk 0:00:03]}  Rf8+ {[%clk 0:00:33]} 48. Ke4 {[%clk 0:00:03]}  Rf5 {[%clk 0:00:32]} 49. Ra7 {[%clk 0:00:03]}  Rxe5+ {[%clk 0:00:32]} 50. Kf4 {[%clk 0:00:04]}  Rf5+ {[%clk 0:00:32]} 51. Kg3 {[%clk 0:00:04]}  Rxg5+ {[%clk 0:00:32]} 52. Kh4 {[%clk 0:00:05]}  Rg4+ {[%clk 0:00:32]} 53. Kh3 {[%clk 0:00:05]}  Rd4 {[%clk 0:00:32]} 54. Ra8 {[%clk 0:00:05]}  Rxd6 {[%clk 0:00:32]} 55. Re8+ {[%clk 0:00:05]}  Kf5 {[%clk 0:00:32]} 56. Re7 {[%clk 0:00:04]}  Nf6 {[%clk 0:00:31]} 57. Re2 {[%clk 0:00:04]}  Rd3+ {[%clk 0:00:31]} 58. Kh2 {[%clk 0:00:03]}  Ne4 {[%clk 0:00:29]} 59. Re1 {[%clk 0:00:02]}  g5 {[%clk 0:00:28]} 60. Rf1+ {[%clk 0:00:02]}  Kg4 {[%clk 0:00:28]} 61. Rg1+ {[%clk 0:00:02]}  Rg3 {[%clk 0:00:28]} 62. Rf1 {[%clk 0:00:02]}  h4 {[%clk 0:00:26]} 63. Rf2 {[%clk 0:00:03]}  Rh3+ {[%clk 0:00:23]} 64. Kg2 {[%clk 0:00:03]}  Nxf2 {[%clk 0:00:23]} 65. Kg1 {[%clk 0:00:04]}  Ne4 {[%clk 0:00:21]} 66. Kg2 {[%clk 0:00:04]}  Ra3 {[%clk 0:00:21]} 67. Kh2 {[%clk 0:00:05]}  Ra2+ {[%clk 0:00:21]} 68. Kg1 {[%clk 0:00:05]}  Kf3 {[%clk 0:00:19]} 69. Kf1 {[%clk 0:00:06]}  Ra1# {[%clk 0:00:18]} 0-1


[Site "https://www.chess.com"]

[Event "Titled Tuesday Blitz March 08 Early 2022"]
[White "Kirillov, Dmitry"]
[Black "Samaganova, Aleksandra"]
[WhiteFideId "34180572"]
[BlackFideId "13800221"]
[WhiteElo "2076"]
[BlackElo "1859"]
[Result "1-0"]
[Round "11"]
[TimeControl "180+1"]
[Date "2022.03.09"]
[WhiteClock "0:00:09"]
[BlackClock "0:00:07"]

1. d4 {[%clk 0:03:00]}  Nf6 {[%clk 0:02:59]} 2. c4 {[%clk 0:03:00]}  e6 {[%clk 0:02:58]} 3. Nf3 {[%clk 0:03:00]}  b6 {[%clk 0:02:58]} 4. e3 {[%clk 0:02:58]}  Bb7 {[%clk 0:02:58]} 5. Nc3 {[%clk 0:02:58]}  Bb4 {[%clk 0:02:56]} 6. Bd3 {[%clk 0:02:58]}  O-O {[%clk 0:02:55]} 7. O-O {[%clk 0:02:58]}  Bxc3 {[%clk 0:02:48]} 8. bxc3 {[%clk 0:02:59]}  Ne4 {[%clk 0:02:42]} 9. Ne1 {[%clk 0:02:59]}  f5 {[%clk 0:02:37]} 10. f3 {[%clk 0:02:59]}  Nd6 {[%clk 0:02:37]} 11. Qe2 {[%clk 0:02:53]}  Nc6 {[%clk 0:02:32]} 12. e4 {[%clk 0:02:51]}  fxe4 {[%clk 0:02:28]} 13. fxe4 {[%clk 0:02:48]}  Rxf1+ {[%clk 0:02:27]} 14. Qxf1 {[%clk 0:02:37]}  Qf6 {[%clk 0:02:22]} 15. Nf3 {[%clk 0:02:31]}  Qf8 {[%clk 0:02:08]} 16. Qe2 {[%clk 0:02:16]}  h6 {[%clk 0:01:53]} 17. Ba3 {[%clk 0:02:10]}  Qf4 {[%clk 0:01:46]} 18. Rf1 {[%clk 0:02:06]}  Rf8 {[%clk 0:01:44]} 19. e5 {[%clk 0:01:46]}  Nf7 {[%clk 0:01:34]} 20. Bxf8 {[%clk 0:01:44]}  Kxf8 {[%clk 0:01:35]} 21. d5 {[%clk 0:01:35]}  Ncd8 {[%clk 0:01:29]} 22. Nd4 {[%clk 0:01:29]}  Qg5 {[%clk 0:01:22]} 23. dxe6 {[%clk 0:01:05]}  dxe6 {[%clk 0:01:16]} 24. Be4 {[%clk 0:01:03]}  Qxe5 {[%clk 0:00:50]} 25. Rxf7+ {[%clk 0:00:49]}  Kxf7 {[%clk 0:00:41]} 26. Qf3+ {[%clk 0:00:13]}  Ke7 {[%clk 0:00:33]} 27. Bxb7 {[%clk 0:00:05]}  Qe1+ {[%clk 0:00:33]} 28. Qf1 {[%clk 0:00:05]}  Qxf1+ {[%clk 0:00:34]} 29. Kxf1 {[%clk 0:00:06]}  Nxb7 {[%clk 0:00:35]} 30. Nc6+ {[%clk 0:00:06]}  Kd6 {[%clk 0:00:34]} 31. Nxa7 {[%clk 0:00:07]}  Na5 {[%clk 0:00:14]} 32. Nb5+ {[%clk 0:00:05]}  Kd7 {[%clk 0:00:12]} 33. c5 {[%clk 0:00:04]}  bxc5 {[%clk 0:00:11]} 34. Ke2 {[%clk 0:00:04]}  Kc6 {[%clk 0:00:09]} 35. Na3 {[%clk 0:00:05]}  c4 {[%clk 0:00:07]} 36. Ke3 {[%clk 0:00:04]}  Kc5 {[%clk 0:00:07]} 37. Nc2 {[%clk 0:00:04]}  Nc6 {[%clk 0:00:05]} 38. Ke4 {[%clk 0:00:04]}  Kd6 {[%clk 0:00:04]} 39. Ne3 {[%clk 0:00:03]}  e5 {[%clk 0:00:03]} 40. Nxc4+ {[%clk 0:00:03]}  Ke6 {[%clk 0:00:04]} 41. Ne3 {[%clk 0:00:03]}  g6 {[%clk 0:00:04]} 42. Nd5 {[%clk 0:00:03]}  h5 {[%clk 0:00:04]} 43. Nxc7+ {[%clk 0:00:03]}  Kd6 {[%clk 0:00:05]} 44. Nd5 {[%clk 0:00:04]}  Ke6 {[%clk 0:00:05]} 45. Ne3 {[%clk 0:00:04]}  Ne7 {[%clk 0:00:04]} 46. Nc4 {[%clk 0:00:04]}  Nc6 {[%clk 0:00:04]} 47. a4 {[%clk 0:00:04]}  Na7 {[%clk 0:00:01]} 48. a5 {[%clk 0:00:04]}  Nc6 {[%clk 0:00:01]} 49. a6 {[%clk 0:00:04]}  Kd7 {[%clk 0:00:02]} 50. Nxe5+ {[%clk 0:00:04]}  Nxe5 {[%clk 0:00:01]} 51. Kxe5 {[%clk 0:00:05]}  Kc6 {[%clk 0:00:02]} 52. Kf6 {[%clk 0:00:06]}  Kb6 {[%clk 0:00:03]} 53. Kxg6 {[%clk 0:00:06]}  Kxa6 {[%clk 0:00:04]} 54. Kxh5 {[%clk 0:00:07]}  Kb5 {[%clk 0:00:05]} 55. g4 {[%clk 0:00:07]}  Kc4 {[%clk 0:00:06]} 56. g5 {[%clk 0:00:08]}  Kxc3 {[%clk 0:00:07]} 57. g6 {[%clk 0:00:09]} 1-0


[Site "https://www.chess.com"]

[Event "Titled Tuesday Blitz March 08 Early 2022"]
[White "Kollars, Dmitrij"]
[Black "Sadhwani, Raunak"]
[WhiteFideId "12909572"]
[BlackFideId "35093487"]
[WhiteElo "2584"]
[BlackElo "2616"]
[Result "1-0"]
[Round "11"]
[TimeControl "180+1"]
[Date "2022.03.08"]
[WhiteClock "0:00:19"]
[BlackClock "0:00:04"]

1. e4 {[%clk 0:02:56]}  e5 {[%clk 0:03:00]} 2. Nf3 {[%clk 0:02:56]}  Nc6 {[%clk 0:03:01]} 3. Nc3 {[%clk 0:02:54]}  Nf6 {[%clk 0:03:00]} 4. d4 {[%clk 0:02:53]}  exd4 {[%clk 0:03:01]} 5. Nxd4 {[%clk 0:02:54]}  Bb4 {[%clk 0:03:01]} 6. Nxc6 {[%clk 0:02:54]}  bxc6 {[%clk 0:03:02]} 7. Bd3 {[%clk 0:02:55]}  O-O {[%clk 0:03:03]} 8. O-O {[%clk 0:02:55]}  d5 {[%clk 0:03:03]} 9. Bd2 {[%clk 0:02:55]}  Re8 {[%clk 0:02:52]} 10. Nxd5 {[%clk 0:02:54]}  cxd5 {[%clk 0:02:52]} 11. Bxb4 {[%clk 0:02:53]}  dxe4 {[%clk 0:02:52]} 12. Bb5 {[%clk 0:02:45]}  Bd7 {[%clk 0:02:51]} 13. Bxd7 {[%clk 0:02:44]}  Qxd7 {[%clk 0:02:52]} 14. Qxd7 {[%clk 0:02:41]}  Nxd7 {[%clk 0:02:53]} 15. Rad1 {[%clk 0:02:32]}  Ne5 {[%clk 0:02:42]} 16. Rd5 {[%clk 0:02:15]}  c6 {[%clk 0:02:42]} 17. Rd4 {[%clk 0:02:10]}  f5 {[%clk 0:02:41]} 18. Rfd1 {[%clk 0:02:07]}  Kf7 {[%clk 0:02:37]} 19. Kf1 {[%clk 0:01:51]}  a6 {[%clk 0:02:27]} 20. Bc3 {[%clk 0:01:32]}  Re7 {[%clk 0:01:46]} 21. Rd8 {[%clk 0:01:28]}  Rxd8 {[%clk 0:01:40]} 22. Rxd8 {[%clk 0:01:29]}  Ng4 {[%clk 0:01:00]} 23. h3 {[%clk 0:01:23]}  Nf6 {[%clk 0:01:01]} 24. Rc8 {[%clk 0:01:16]}  Re6 {[%clk 0:00:44]} 25. Rc7+ {[%clk 0:01:16]}  Kg6 {[%clk 0:00:44]} 26. g3 {[%clk 0:00:58]}  h5 {[%clk 0:00:31]} 27. h4 {[%clk 0:00:54]}  a5 {[%clk 0:00:21]} 28. a4 {[%clk 0:00:44]}  Rd6 {[%clk 0:00:17]} 29. Ke2 {[%clk 0:00:38]}  Re6 {[%clk 0:00:13]} 30. Ra7 {[%clk 0:00:30]}  Nd5 {[%clk 0:00:12]} 31. Rxg7+ {[%clk 0:00:21]}  Kh6 {[%clk 0:00:12]} 32. Ra7 {[%clk 0:00:21]}  f4 {[%clk 0:00:10]} 33. gxf4 {[%clk 0:00:22]}  Nxf4+ {[%clk 0:00:11]} 34. Kf1 {[%clk 0:00:20]}  Nd5 {[%clk 0:00:08]} 35. Bd2+ {[%clk 0:00:18]}  Kg6 {[%clk 0:00:08]} 36. Rxa5 {[%clk 0:00:19]}  Rf6 {[%clk 0:00:06]} 37. Ke2 {[%clk 0:00:19]}  Re6 {[%clk 0:00:04]} 38. c4 {[%clk 0:00:19]}  Ne7 {[%clk 0:00:04]} 39. Rg5+ {[%clk 0:00:19]} 1-0


[Site "https://www.chess.com"]

[Event "Titled Tuesday Blitz March 08 Early 2022"]
[White "Korkmaz, Necmettin"]
[Black "Johnson, Ben"]
[WhiteFideId "6303285"]
[BlackFideId "2010917"]
[WhiteElo "2094"]
[BlackElo "2232"]
[Result "1-0"]
[Round "11"]
[TimeControl "180+1"]
[Date "2022.03.09"]
[WhiteClock "0:00:02"]
[BlackClock "0:00:01"]

1. d4 {[%clk 0:02:30]}  Nf6 {[%clk 0:02:59]} 2. c4 {[%clk 0:02:27]}  e6 {[%clk 0:02:59]} 3. Nf3 {[%clk 0:02:22]}  d5 {[%clk 0:02:58]} 4. g3 {[%clk 0:02:19]}  dxc4 {[%clk 0:02:49]} 5. Bg2 {[%clk 0:02:15]}  c5 {[%clk 0:02:48]} 6. O-O {[%clk 0:01:54]}  Nc6 {[%clk 0:02:47]} 7. Na3 {[%clk 0:01:35]}  cxd4 {[%clk 0:02:37]} 8. Nxc4 {[%clk 0:01:33]}  Be7 {[%clk 0:02:31]} 9. Bf4 {[%clk 0:01:28]}  O-O {[%clk 0:02:30]} 10. Nfe5 {[%clk 0:01:28]}  Nxe5 {[%clk 0:01:47]} 11. Bxe5 {[%clk 0:01:26]}  d3 {[%clk 0:01:47]} 12. exd3 {[%clk 0:01:18]}  Nd5 {[%clk 0:01:46]} 13. b3 {[%clk 0:01:12]}  Bf6 {[%clk 0:01:45]} 14. Rc1 {[%clk 0:01:08]}  Bxe5 {[%clk 0:01:36]} 15. Nxe5 {[%clk 0:01:07]}  Qd6 {[%clk 0:01:36]} 16. d4 {[%clk 0:01:06]}  Bd7 {[%clk 0:01:30]} 17. Re1 {[%clk 0:01:02]}  Rac8 {[%clk 0:01:27]} 18. Nc4 {[%clk 0:00:57]}  Qa6 {[%clk 0:01:18]} 19. Qd2 {[%clk 0:00:53]}  Nf6 {[%clk 0:01:04]} 20. Ne5 {[%clk 0:00:51]}  Bb5 {[%clk 0:01:00]} 21. d5 {[%clk 0:00:45]}  exd5 {[%clk 0:00:56]} 22. Bxd5 {[%clk 0:00:45]}  Nxd5 {[%clk 0:00:42]} 23. Qxd5 {[%clk 0:00:44]}  Bc6 {[%clk 0:00:42]} 24. Nxc6 {[%clk 0:00:42]}  bxc6 {[%clk 0:00:38]} 25. Qd2 {[%clk 0:00:37]}  Rcd8 {[%clk 0:00:38]} 26. Qe2 {[%clk 0:00:37]}  Qa5 {[%clk 0:00:32]} 27. Rxc6 {[%clk 0:00:33]}  Rd2 {[%clk 0:00:31]} 28. Qe7 {[%clk 0:00:28]}  g6 {[%clk 0:00:24]} 29. a4 {[%clk 0:00:24]}  Qd5 {[%clk 0:00:16]} 30. Rc3 {[%clk 0:00:18]}  Qd4 {[%clk 0:00:11]} 31. Rce3 {[%clk 0:00:17]}  a5 {[%clk 0:00:10]} 32. Qe5 {[%clk 0:00:16]}  Qb6 {[%clk 0:00:05]} 33. Qb5 {[%clk 0:00:12]}  Qd8 {[%clk 0:00:03]} 34. Re8 {[%clk 0:00:11]}  Qd4 {[%clk 0:00:01]} 35. Rxf8+ {[%clk 0:00:11]}  Kxf8 {[%clk 0:00:02]} 36. Qe8+ {[%clk 0:00:11]}  Kg7 {[%clk 0:00:02]} 37. Qe5+ {[%clk 0:00:12]}  Qxe5 {[%clk 0:00:02]} 38. Rxe5 {[%clk 0:00:13]}  Rb2 {[%clk 0:00:02]} 39. Rb5 {[%clk 0:00:13]}  Rb1+ {[%clk 0:00:01]} 40. Kg2 {[%clk 0:00:13]}  Rb2 {[%clk 0:00:02]} 41. h4 {[%clk 0:00:13]}  Kf6 {[%clk 0:00:03]} 42. Kf3 {[%clk 0:00:13]}  h5 {[%clk 0:00:04]} 43. Ke3 {[%clk 0:00:13]}  Ke6 {[%clk 0:00:04]} 44. f3 {[%clk 0:00:12]}  Kd6 {[%clk 0:00:03]} 45. Kf4 {[%clk 0:00:12]}  f6 {[%clk 0:00:03]} 46. g4 {[%clk 0:00:12]}  hxg4 {[%clk 0:00:03]} 47. fxg4 {[%clk 0:00:12]}  Rh2 {[%clk 0:00:03]} 48. Kg3 {[%clk 0:00:12]}  Rb2 {[%clk 0:00:02]} 49. h5 {[%clk 0:00:12]}  gxh5 {[%clk 0:00:02]} 50. gxh5 {[%clk 0:00:12]}  Ke6 {[%clk 0:00:03]} 51. Kg4 {[%clk 0:00:09]}  Kf7 {[%clk 0:00:03]} 52. Rb7+ {[%clk 0:00:08]}  Ke6 {[%clk 0:00:03]} 53. h6 {[%clk 0:00:08]}  Rg2+ {[%clk 0:00:02]} 54. Kf3 {[%clk 0:00:08]}  Rh2 {[%clk 0:00:02]} 55. h7 {[%clk 0:00:08]}  Kf5 {[%clk 0:00:02]} 56. Rg7 {[%clk 0:00:07]}  Rh3+ {[%clk 0:00:02]} 57. Ke2 {[%clk 0:00:06]}  Ke4 {[%clk 0:00:01]} 58. Kf2 {[%clk 0:00:06]}  f5 {[%clk 0:00:01]} 59. Kg2 {[%clk 0:00:06]}  Rh4 {[%clk 0:00:01]} 60. Ra7 {[%clk 0:00:03]}  Rh5 {[%clk 0:00:01]} 61. Kg3 {[%clk 0:00:01]}  Rh1 {[%clk 0:00:01]} 62. Kf2 {[%clk 0:00:01]}  Rh2+ {[%clk 0:00:01]} 63. Kg1 {[%clk 0:00:01]}  Rh5 {[%clk 0:00:02]} 64. Rxa5 {[%clk 0:00:01]}  Rxh7 {[%clk 0:00:01]} 65. Ra7 {[%clk 0:00:02]} 1-0


[Site "https://www.chess.com"]

[Event "Titled Tuesday Blitz March 08 Early 2022"]
[White "Kosteniuk, Alexandra"]
[Black "Bodnaruk, Anastasia"]
[WhiteFideId "4128125"]
[BlackFideId "4181751"]
[WhiteElo "2469"]
[BlackElo "2393"]
[Result "1-0"]
[Round "11"]
[TimeControl "180+1"]
[Date "2022.03.08"]
[WhiteClock "0:00:58"]
[BlackClock "0:00:02"]

1. e4 {[%clk 0:03:00]}  c5 {[%clk 0:03:00]} 2. Nf3 {[%clk 0:03:00]}  d6 {[%clk 0:03:00]} 3. Bb5+ {[%clk 0:03:00]}  Bd7 {[%clk 0:02:58]} 4. Bxd7+ {[%clk 0:03:00]}  Qxd7 {[%clk 0:02:59]} 5. d4 {[%clk 0:03:00]}  cxd4 {[%clk 0:02:58]} 6. Qxd4 {[%clk 0:03:00]}  Nc6 {[%clk 0:02:58]} 7. Qe3 {[%clk 0:03:00]}  Nf6 {[%clk 0:02:56]} 8. O-O {[%clk 0:02:57]}  e5 {[%clk 0:02:51]} 9. c4 {[%clk 0:02:54]}  Be7 {[%clk 0:02:50]} 10. Nc3 {[%clk 0:02:52]}  O-O {[%clk 0:02:48]} 11. Rd1 {[%clk 0:02:51]}  Qc7 {[%clk 0:02:29]} 12. b3 {[%clk 0:02:50]}  a6 {[%clk 0:02:20]} 13. a4 {[%clk 0:02:41]}  Nb4 {[%clk 0:02:17]} 14. Qe2 {[%clk 0:02:39]}  Nc6 {[%clk 0:01:43]} 15. Ba3 {[%clk 0:02:30]}  Rfd8 {[%clk 0:01:40]} 16. h3 {[%clk 0:02:28]}  Bf8 {[%clk 0:01:40]} 17. Rac1 {[%clk 0:02:25]}  Qa5 {[%clk 0:01:37]} 18. Nd5 {[%clk 0:02:18]}  Nxd5 {[%clk 0:01:25]} 19. Rxd5 {[%clk 0:02:19]}  Qc7 {[%clk 0:01:18]} 20. Qd2 {[%clk 0:02:17]}  Rd7 {[%clk 0:00:57]} 21. Rd1 {[%clk 0:02:17]}  Rad8 {[%clk 0:00:57]} 22. c5 {[%clk 0:02:08]}  Qa5 {[%clk 0:00:25]} 23. cxd6 {[%clk 0:02:01]}  Qxd2 {[%clk 0:00:25]} 24. R1xd2 {[%clk 0:02:01]}  f6 {[%clk 0:00:25]} 25. b4 {[%clk 0:01:29]}  Rxd6 {[%clk 0:00:23]} 26. b5 {[%clk 0:01:14]}  Rxd5 {[%clk 0:00:18]} 27. exd5 {[%clk 0:01:13]}  Bxa3 {[%clk 0:00:11]} 28. dxc6 {[%clk 0:01:11]}  Rxd2 {[%clk 0:00:08]} 29. Nxd2 {[%clk 0:01:11]}  bxc6 {[%clk 0:00:08]} 30. bxa6 {[%clk 0:00:58]}  Bc5 {[%clk 0:00:08]} 31. Nc4 {[%clk 0:00:59]}  Kf7 {[%clk 0:00:04]} 32. Na5 {[%clk 0:00:59]}  Ke6 {[%clk 0:00:01]} 33. Nxc6 {[%clk 0:00:59]}  Kd7 {[%clk 0:00:02]} 34. a7 {[%clk 0:00:58]} 1-0


[Site "https://www.chess.com"]

[Event "Titled Tuesday Blitz March 08 Early 2022"]
[White "Kovanova, Baira"]
[Black "Mikhalsky, Vladimir"]
[WhiteFideId "4164083"]
[BlackFideId "14144352"]
[WhiteElo "2190"]
[BlackElo "2301"]
[Result "0-1"]
[Round "11"]
[TimeControl "180+1"]
[Date "2022.03.09"]
[WhiteClock "0:00:09"]
[BlackClock "0:00:41"]

1. e4 {[%clk 0:03:00]}  g6 {[%clk 0:02:59]} 2. d4 {[%clk 0:02:59]}  Bg7 {[%clk 0:02:59]} 3. Nf3 {[%clk 0:02:58]}  d6 {[%clk 0:02:59]} 4. Bd3 {[%clk 0:02:58]}  a6 {[%clk 0:02:58]} 5. O-O {[%clk 0:02:58]}  b5 {[%clk 0:02:56]} 6. c3 {[%clk 0:02:58]}  Bb7 {[%clk 0:02:56]} 7. Re1 {[%clk 0:02:57]}  c5 {[%clk 0:02:52]} 8. Be3 {[%clk 0:02:49]}  Nd7 {[%clk 0:02:50]} 9. h3 {[%clk 0:02:46]}  Ngf6 {[%clk 0:02:43]} 10. Nbd2 {[%clk 0:02:45]}  O-O {[%clk 0:02:41]} 11. Bf4 {[%clk 0:02:29]}  Nh5 {[%clk 0:02:35]} 12. Bh2 {[%clk 0:02:29]}  e5 {[%clk 0:02:35]} 13. a4 {[%clk 0:02:14]}  c4 {[%clk 0:02:30]} 14. Bc2 {[%clk 0:02:09]}  Nf4 {[%clk 0:02:28]} 15. Nf1 {[%clk 0:01:56]}  Nb6 {[%clk 0:02:22]} 16. a5 {[%clk 0:01:43]}  Nd7 {[%clk 0:02:22]} 17. Ne3 {[%clk 0:01:43]}  h5 {[%clk 0:02:16]} 18. h4 {[%clk 0:01:20]}  Re8 {[%clk 0:02:13]} 19. dxe5 {[%clk 0:01:15]}  dxe5 {[%clk 0:02:13]} 20. Ng5 {[%clk 0:01:09]}  Nc5 {[%clk 0:02:10]} 21. Qf3 {[%clk 0:00:52]}  f6 {[%clk 0:01:55]} 22. Red1 {[%clk 0:00:48]}  Nfd3 {[%clk 0:01:52]} 23. b4 {[%clk 0:00:28]}  fxg5 {[%clk 0:01:36]} 24. bxc5 {[%clk 0:00:28]}  g4 {[%clk 0:01:37]} 25. Qg3 {[%clk 0:00:26]}  Bxe4 {[%clk 0:01:35]} 26. f3 {[%clk 0:00:21]}  gxf3 {[%clk 0:01:14]} 27. gxf3 {[%clk 0:00:21]}  Bf5 {[%clk 0:01:14]} 28. Nxf5 {[%clk 0:00:20]}  gxf5 {[%clk 0:01:14]} 29. Qg6 {[%clk 0:00:15]}  Qxh4 {[%clk 0:01:04]} 30. Bg3 {[%clk 0:00:13]}  Qf6 {[%clk 0:01:02]} 31. Qxh5 {[%clk 0:00:13]}  e4 {[%clk 0:00:57]} 32. fxe4 {[%clk 0:00:12]}  fxe4 {[%clk 0:00:56]} 33. Rf1 {[%clk 0:00:12]}  Qe6 {[%clk 0:00:51]} 34. Bxd3 {[%clk 0:00:11]}  cxd3 {[%clk 0:00:50]} 35. Rae1 {[%clk 0:00:11]}  e3 {[%clk 0:00:49]} 36. Rf3 {[%clk 0:00:11]}  d2 {[%clk 0:00:42]} 37. Rb1 {[%clk 0:00:09]}  e2 {[%clk 0:00:41]} 0-1


[Site "https://www.chess.com"]